Cogmind - Beta 12 @@@ ROGUE MODE // 2023.09.12 @ 18:24:18 Player: monistgf Result: Destroyed by G-47 Trooper with Particle Gun Performance ------------- Evolutions (3) 1500 Regions Visited (10) 2000 Robots Destroyed (164) 820 Value Destroyed (7339) 7339 Prototype IDs (8) 160 Alien Tech Used (0) 0 Bonus (2559) 2559 TOTAL SCORE: 14378 Bonus ------- High Alert Combat Kills 579 Follower Combat Kills 380 Entered Garrisons 600 Used RIF Installer 1000 Cogmind --------- Core Integrity 0/700 Matter 251/300 Energy 500/500 System Corruption 4% Temperature Hot (215) Movement Walking (260) Ox2 Location -7/Storage Parts ------- > --- POWER (1) -------- F-cell Engine > --- PROPULSION (5) --- Light Treads Aluminum Leg Aluminum Leg Carbon-fiber Leg (fused) Improved Carbon-fiber Leg > --- UTILITY (4) ------ Huge Storage Unit Visual Processing Unit Hardened Light Armor Plating Hardened Medium Armor Plating > --- WEAPON (3) ------- Lightning Gun High-powered Shotgun Enhanced Autogun > --- INVENTORY (25) --- Improved Deuterium Engine Aluminum Leg Aluminum Leg Armored Huge Wheel VTOL Module Improved Heat Sink Improved Heat Sink Improved Heat Sink Improved Heat Sink Large Storage Unit High-capacity Matter Pod (200) Authchip [R/Combat] Relay Coupler [NC] (31) Relay Coupler [Sentry] (23) Relay Coupler [Specialist] (18) Long-range Tractor Beam Shock Rifle Particle Gun Precision Grenade Launcher Remote Datajack Remote Datajack Heavy Flail Spear Peak State ------------ > --- POWER ------------ Micro Nuclear Core > --- PROPULSION ------- Aluminum Leg Carbon-fiber Leg VSS Leg VSS Leg Improved Carbon-fiber Leg > --- UTILITY ---------- Improved Heat Sink Improved Cooling System Large Storage Unit Improved Medium Armor Plating > --- WEAPON ----------- Arc Projector Arc Projector Heavy Flail > --- INVENTORY -------- Aluminum Leg Improved Heat Sink High-capacity Matter Pod Improved Medium Armor Plating Improved Medium Armor Plating Authchip [R/Combat] Authchip [R/Combat] Authchip [R/Combat] Relay Coupler [Duelist] Relay Coupler [Sentry] Relay Coupler [Sentry] Arc Projector Improved Datajack Remote Datajack Heavy Flail [Rating: 46] Favorites ----------- Power Cooled Ion Engine Engine Cooled Ion Engine Power Core Light Nuclear Core Propulsion Aluminum Leg Treads Advanced Treads Leg Aluminum Leg Wheel Wheel Flight Unit VTOL Module Utility Large Storage Unit Device Improved Heat Sink Storage Large Storage Unit Processor Visual Processing Unit Hackware Relay Coupler [Grunt] Protection Improved Light Armor Plating Weapon Improved Medium Laser Energy Gun Improved Medium Laser Ballistic Gun Autogun Ballistic Cannon Improved Light Cannon Launcher Improved Grenade Launcher Special Weapon Remote Datajack Impact Weapon Heavy Flail Slashing Weapon Scythe Piercing Weapon Spear Special Melee Weapon Improved Datajack Build | -11 -10 -9 -8 -8 -8 -8 -7 -7 -7 -7 ------- Run | Jun Mat Mat Mat Gar Mat Gar Fac Gar Fac Sto Slots Evolved 6 | . . 2 2 . . . 2 . . . Power . | . . . . . . . . . . . Propulsion 3 | . . 1 1 . . . 1 . . . Utility 2 | . . . 1 . . . 1 . . . Weapon 1 | . . 1 . . . . . . . . Parts Attached 205 | 8 7 32 3 7 7 22 35 36 35 13 Power 17 | 2 2 2 . . . 3 1 3 3 1 Engine 13 | 2 1 2 . . . 2 . 2 3 1 Core 4 | . 1 . . . . 1 1 1 . . Reactor . | . . . . . . . . . . . Propulsion 58 | 2 1 11 1 . 2 7 8 7 15 4 Treads 15 | . . 7 1 . 2 . . 2 2 1 Leg 40 | 2 1 4 . . . 7 6 4 13 3 Wheel 2 | . . . . . . . 2 . . . Hover . | . . . . . . . . . . . Flight 1 | . . . . . . . . 1 . . Utility 43 | 1 2 8 2 1 1 5 6 7 8 2 Device 16 | . 2 6 1 . . 1 2 2 2 . Storage 3 | 1 . 1 . . . . . . 1 . Processor 1 | . . . . . . . . . 1 . Hackware 7 | . . . . . . . 2 2 3 . Protection 16 | . . 1 1 1 1 4 2 3 1 2 Artifact . | . . . . . . . . . . . Weapon 87 | 3 2 11 . 6 4 7 20 19 9 6 Energy Gun 18 | . . 2 . . . 1 3 6 4 2 Energy Cannon . | . . . . . . . . . . . Ballistic Gun 20 | 3 2 7 . . . . . 2 4 2 Ballistic Cannon 14 | . . . . 2 3 3 6 . . . Launcher 4 | . . 2 . 1 . 1 . . . . Special Weapon 10 | . . . . . . . 4 5 1 . Impact Weapon 12 | . . . . . . . 7 5 . . Slashing Weapon 6 | . . . . 3 1 2 . . . . Piercing Weapon 2 | . . . . . . . . . . 2 Special Melee Weapon 1 | . . . . . . . . 1 . . Unidentified Prototypes 3 | . . 1 . . . . . . . 2 Parts Lost 58 | . 1 2 . . 2 19 4 16 13 1 Power 7 | . 1 1 . . . 3 . 1 1 . Propulsion 24 | . . . . . 2 9 1 7 4 1 Utility 9 | . . . . . . 2 . 4 3 . Weapon 18 | . . 1 . . . 5 3 4 5 . Highest Loss Streak 12 | . 1 1 . . 2 9 2 12 5 1 To Critical Strikes 1 | . . . . . . . . 1 . . Average Slot Usage (%) 87 | . 91 98 100 91 85 65 77 76 99 100 Engine 7 | . 4 9 9 9 9 8 6 4 7 7 Treads 14 | . . 25 36 36 31 11 . 12 2 5 Leg 14 | . 28 7 . . . 9 15 11 33 31 Device 7 | . 6 10 9 1 . . 8 11 6 6 Storage 8 | . 14 11 9 9 9 9 7 7 7 7 Hackware 1 | . . . . . . . 2 3 3 2 Protection 6 | . . . 9 8 8 8 7 7 8 5 Energy Gun 7 | . . 18 18 3 . 6 4 2 5 10 Ballistic Gun 8 | . 28 14 9 8 . . . 2 15 9 Ballistic Cannon 3 | . . . . 11 19 5 8 . . . Impact Weapon 1 | . . . . . . . 4 6 . . Slashing Weapon 1 | . . . . 3 7 5 . . . . Naked Turns . | . . . . . . . . . . . Heaviest Build 113 | 14 17 42 43 59 60 60 56 49 106 113 Greatest Support 88 | 20 20 66 88 88 88 84 67 67 68 68 Greatest Overweight (x) 10 | 1 . 1 . . 1 5 5 10 2 2 Average Overweight (x) . | . . . . . . 1 2 . 1 1 Largest Inventory Capacity 25 | 8 8 15 15 15 15 15 15 15 25 25 Average Capacity 16 | 7 8 14 15 15 15 15 15 15 22 25 Most Carried 25 | 2 8 15 15 15 15 15 15 15 25 25 Average Carried 14 | 1 6 14 14 14 14 13 13 14 18 23 Final Capacity 25 | 8 8 15 15 15 15 15 15 15 25 25 Final Carried 24 | 2 8 15 15 15 15 10 15 15 21 24 Class Distribution -------------------- 32% | Mutant 21% | Scavenger-Tank 12% | Gunner 10% | Bothacker-Mutant 9% | Tank 8% | Scavenger-Mutant Dominant Class ---------------- Mutant | -10/Materials Gunner | -9/Materials Tank | -8/Materials Tank | -8/Garrison Mutant | -8/Materials Mutant | -8/Garrison Bothacker-Mutant | -7/Factory Bothacker-Mutant | -7/Garrison Scavenger-Tank | -7/Factory Scavenger-Tank | -7/Storage Resources | -11 -10 -9 -8 -8 -8 -8 -7 -7 -7 -7 ----------- Run | Jun Mat Mat Mat Gar Mat Gar Fac Gar Fac Sto Matter Collected 4938 | 212 249 965 78 255 390 340 788 455 928 278 Remotely . | . . . . . . . . . . . Salvage Created 6530 | . 281 1532 363 404 424 293 1012 1151 844 226 Parts 307 | . 20 90 12 34 24 11 37 32 36 11 Haulers Intercepted 6 | . . 3 1 . 2 . . . . . Recyclers Shooed 7 | . 1 1 . . . . 4 . 1 . Parts Field Recycled . | . . . . . . . . . . . Retrieved Matter . | . . . . . . . . . . . Parts Self-Destructed . | . . . . . . . . . . . Prevented . | . . . . . . . . . . . Kills | -11 -10 -9 -8 -8 -8 -8 -7 -7 -7 -7 ------- Run | Jun Mat Mat Mat Gar Mat Gar Fac Gar Fac Sto Combat Hostiles Destroyed 138 | . 7 37 6 14 11 11 17 12 18 5 Melee 6 | . . . . . 1 3 . 2 . . Guns 85 | . 7 31 6 4 . 2 3 9 18 5 Cannons 34 | . . . . 6 10 6 12 . . . AOE 10 | . . 6 . 4 . . . . . . Classes Destroyed 14 | . 5 4 . . 2 1 2 . . . Worker 5 | . 1 1 . . 1 . 2 . . . Builder 3 | . . 1 . . . . 2 . . . Hauler 6 | . . 3 1 . 2 . . . . . Recycler 5 | . . . . . . . 5 . . . Operator 1 | . 1 . . . . . . . . . Watcher 6 | . 1 3 . . . . 1 . 1 . Swarmer 31 | . 3 10 . 7 . . 2 8 1 . Grunt 73 | . 4 17 3 5 5 10 11 2 11 5 Brawler 4 | . . 1 . 1 1 . . . 1 . Duelist 2 | . . . . . 1 . . . 1 . Protector 1 | . . . . . . 1 . . . . Sentry 22 | . . 9 3 1 3 . 3 2 1 . Hunter 3 | . . . . . 1 . . . 2 . Programmer 2 | . . . . . . . 1 . 1 . Best Kill Streak 9 | . 4 4 3 7 2 2 9 3 5 3 Combat Bots Only 7 | . 3 4 3 7 2 2 3 3 5 3 Max Kills in Single Turn 3 | . 1 2 1 3 1 1 2 1 1 1 Gunslinging . | . . . . . . . . . . . Exploded 3 | . . 2 . 3 . . . . . . Melee 1 | . . . . . 1 1 . 1 . . Uniques/NPCs Destroyed . | . . . . . . . . . . . Combat | -11 -10 -9 -8 -8 -8 -8 -7 -7 -7 -7 -------- Run | Jun Mat Mat Mat Gar Mat Gar Fac Gar Fac Sto Damage Taken 11629 | . 501 981 255 198 1003 3137 1228 2112 1797 417 Core 1408 | . 91 139 18 48 68 344 221 226 194 59 Absorbed by Shields 16 | . . . . . . 16 . . . . Regen/Repaired (Parts) 418 | . . 195 . . . . 58 . 165 . Core Remaining (%) 60 | 100 63 65 . . . 13 . . . . Volleys Fired 406 | . 30 84 16 26 39 53 61 16 68 13 Largest 3 | . 2 3 3 3 3 3 3 2 3 3 Hottest 145 | . 40 135 135 135 117 117 143 110 116 145 Shots Fired 944 | . 60 211 48 60 83 84 135 38 186 39 Gun 667 | . 60 207 48 33 . 22 44 33 181 39 Cannon 248 | . . . . 24 83 62 79 . . . Launcher 7 | . . 4 . 3 . . . . . . Special 22 | . . . . . . . 12 5 5 . Kinetic 645 | . 60 113 16 47 83 62 79 9 154 22 Thermal 208 | . . 94 32 10 . 22 4 16 20 10 Explosive 7 | . . 4 . 3 . . . . . . Electromagnetic 62 | . . . . . . . 40 8 7 7 Robot Hit Streak 17 | . 8 17 15 14 11 9 11 10 10 9 Robot Miss Streak 7 | . 2 4 1 5 5 4 5 6 7 3 Penetration Max . | . . . . . . . . . . . Secondary Targets 6 | . 1 2 . 1 . . . . 2 . Max Gunslinging Chain 1 | . 1 1 . 1 . . . . 1 . Autonomous 25 | . . . . . . . . 25 . . Shots Hit Robots 655 | . 37 129 38 24 55 62 96 57 131 26 Core Hits 329 | . 18 59 14 22 20 20 63 18 83 12 Critical Kills 2 | . . 1 1 . . . . . . . Critical Parts Destroyed 6 | . 1 . . . . . 2 3 . . Critical Strikes 31 | . 1 9 3 2 3 3 4 4 . 2 Burn 13 | . . 8 2 1 . . . . . 2 Destroy 3 | . 1 1 1 . . . . . . . Blast 5 | . . . . 1 1 1 2 . . . Smash 6 | . . . . . . . 2 4 . . Sever 4 | . . . . . 2 2 . . . . Melee Attacks 102 | . . . . 8 4 23 19 45 . 3 Impact 62 | . . . . . . . 19 43 . . Slashing 35 | . . . . 8 4 23 . . . . Piercing 3 | . . . . . . . . . . 3 Sneak Attacks . | . . . . . . . . . . . Combat Hostiles . | . . . . . . . . . . . Follow-up Attacks 1 | . . . . . . . . 1 . . Damage Inflicted 14354 | . 493 2623 616 560 1200 1394 2240 2656 2094 478 Guns 7458 | . 489 2235 616 246 . 171 351 779 2093 478 Cannons 3450 | . . . . 128 1073 791 1458 . . . Explosions 563 | . . 377 . 186 . . . . . . Melee 2853 | . . . . . 127 432 421 1873 . . Ramming 30 | . 4 11 . . . . 10 4 1 . Kinetic 7426 | . 489 1036 152 270 1073 791 1458 111 1792 254 Thermal 2877 | . . 1199 464 104 . 171 49 582 216 92 Explosive 563 | . . 377 . 186 . . . . . . Electromagnetic 605 | . . . . . . . 302 86 85 132 Impact 2294 | . . . . . . . 421 1873 . . Slashing 559 | . . . . . 127 432 . . . . Piercing . | . . . . . . . . . . . Highest Corruption 4 | . . . . . . . 2 2 4 4 Average Corruption 2 | . . . . . . . 1 2 2 4 Corruption Purged . | . . . . . . . . . . . Corruption Blocked . | . . . . . . . . . . . Effects 74 | . . . . . . . 2 23 41 8 Message Errors 19 | . . . . . . . . 7 12 . Matter Fused 16 | . . . . . . . 1 5 8 2 Heat Flow Errors 5 | . . . . . . . . 3 2 . Energy Discharges 10 | . . . . . . . . 3 6 1 Parts Rejected 1 | . . . . . . . . 1 . . Parts Fused 1 | . . . . . . . . . 1 . Data Loss (minor) 10 | . . . . . . . . 2 6 2 Data Loss (major) 3 | . . . . . . . . . 3 . Misfires 4 | . . . . . . . 1 2 . 1 Alerts 1 | . . . . . . . . . . 1 Weapon Failures 4 | . . . . . . . . . 3 1 Overload Shots . | . . . . . . . . . . . Overflow Damage 967 | . . 22 . 13 37 7 207 681 . . Projectiles 53 | . . . . . 37 . 16 . . . Explosions 35 | . . 22 . 13 . . . . . . Melee 879 | . . . . . . 7 191 681 . . Knockbacks 34 | . . . . . 6 12 16 . . . Impact 2 | . . . . . . . 2 . . . Kinetic 28 | . . . . . 5 10 13 . . . Secondary 4 | . . . . . 1 2 1 . . . Self-Inflicted Damage 35 | . . . . 30 . . 5 . . . Shots 1 | . . . . 1 . . . . . . Rammed 4 | . . 2 . . . . 2 . . . Targets Rammed 11 | . 2 5 . . . . 2 1 1 . Kicked 6 | . 2 3 . . . . . . 1 . Crushed 1 | . . . . . . . . 1 . . Highest Temperature 344 | . 22 192 138 135 333 344 138 220 206 206 Average Temperature 86 | . 12 51 64 40 111 159 41 46 31 58 Received Heat Transfer 4485 | . 246 396 90 63 426 1455 435 525 639 210 Effects 7 | . . . . . 3 4 . . . . Energy Bleed 5 | . . . . . 3 2 . . . . Interference 2 | . . . . . . 2 . . . . Siege Activations . | . . . . . . . . . . . Robots Corrupted 2 | . . . . . . . 1 1 . . Combat Hostiles 2 | . . . . . . . 1 1 . . Parts Fried 15 | . . . . . . . 4 10 1 . Impact Corruptions 19 | . . . . . . . 8 11 . . Robots Melted . | . . . . . . . . . . . Combat Hostiles . | . . . . . . . . . . . Parts Melted 13 | . . 5 4 1 . . 1 1 1 . Heat Transferred 6466 | . . 3108 1147 296 . 391 111 525 518 370 Parts Sabotaged . | . . . . . . . . . . . Parts Stolen . | . . . . . . . . . . . Parts Stripped . | . . . . . . . . . . . Power Chain Reactions . | . . . . . . . . . . . Missiles Intercepted . | . . . . . . . . . . . Alert | -11 -10 -9 -8 -8 -8 -8 -7 -7 -7 -7 ------- Run | Jun Mat Mat Mat Gar Mat Gar Fac Gar Fac Sto Peak Influence 996 | . 228 700 457 996 655 666 486 718 416 299 Initial 485 | . . 13 228 297 485 416 310 207 376 144 Average 396 | . 78 414 331 671 556 586 310 369 325 216 Maximum Alert Level 3 | . 1 3 2 3 2 2 2 3 2 1 Low Security (%) 14 | 100 89 16 . . . . 12 24 . 54 Level 1 40 | . 10 29 69 9 . . 68 36 90 45 Level 2 39 | . . 49 30 42 100 100 19 32 9 . Level 3 5 | . . 4 . 48 . . . 6 . . Level 4 . | . . . . . . . . . . . Level 5 . | . . . . . . . . . . . High Security . | . . . . . . . . . . . Max Security . | . . . . . . . . . . . Squads Dispatched 31 | . 1 6 1 . 4 . 8 . 8 3 Investigation 8 | . 1 3 . . . . 1 . 2 1 Extermination 3 | . . . . . . . 2 . 1 . Reinforcement 9 | . . 3 1 . 1 . 2 . 2 . Assault . | . . . . . . . . . . . Garrison 11 | . . . . . 3 . 3 . 3 2 Intercept . | . . . . . . . . . . . Searches Triggered . | . . . . . . . . . . . Construction Impeded 3 | . . 1 . . 1 . 1 . . . Haulers Reinforced 1 | . . . . . . . . . 1 . Active Scanning Responses . | . . . . . . . . . . . Cargo Convoy Interrupts . | . . . . . . . . . . . Alert ID Control Effect 1 | . . . . . . . . . 1 . Stealth | -11 -10 -9 -8 -8 -8 -8 -7 -7 -7 -7 --------- Run | Jun Mat Mat Mat Gar Mat Gar Fac Gar Fac Sto Distress Signals 12 | . 1 3 1 . 1 . 5 . . 1 Communications Jammed . | . . . . . . . . . . . Distress Signals . | . . . . . . . . . . . Times Spotted 205 | . 10 49 8 15 14 16 36 19 30 8 Peak Tracking Total 7 | . 4 5 3 7 4 5 6 5 4 3 Tactical Retreats 14 | . 1 1 . . 1 5 3 1 2 . Traps | -11 -10 -9 -8 -8 -8 -8 -7 -7 -7 -7 ------- Run | Jun Mat Mat Mat Gar Mat Gar Fac Gar Fac Sto Traps Triggered 15 | . . 1 . . . 6 . 8 . . Indirectly . | . . . . . . . . . . . Trap Hack Attempts . | . . . . . . . . . . . Triggered . | . . . . . . . . . . . Disarmed . | . . . . . . . . . . . Reprogrammed . | . . . . . . . . . . . Reused . | . . . . . . . . . . . Traps Extracted . | . . . . . . . . . . . Installed . | . . . . . . . . . . . Triggered . | . . . . . . . . . . . Machines | -11 -10 -9 -8 -8 -8 -8 -7 -7 -7 -7 ---------- Run | Jun Mat Mat Mat Gar Mat Gar Fac Gar Fac Sto Machines Disabled 15 | . . 2 . 5 1 1 . 4 . 2 Max in Single Turn 2 | . . 1 . 2 1 1 . 1 . 1 Garrison Access 3 | . . . . . . . 1 . 1 1 Garrison Relay 8 | . . . . 3 . 1 . 4 . . Phase Generator 1 | . . . . 1 . . . . . . Machines Repaired . | . . . . . . . . . . . Machines Sabotaged . | . . . . . . . . . . . Overloaded Fab Kills . | . . . . . . . . . . . Hacking | -11 -10 -9 -8 -8 -8 -8 -7 -7 -7 -7 --------- Run | Jun Mat Mat Mat Gar Mat Gar Fac Gar Fac Sto Machines Accessed 35 | . 4 9 2 4 2 . 6 1 5 2 Terminals 26 | . 4 8 1 4 1 . 4 1 2 1 Fabricators 2 | . . . . . . . . . 2 . Repair Stations 1 | . . 1 . . . . . . . . Recycling Units . | . . . . . . . . . . . Scanalyzers . | . . . . . . . . . . . Garrison Access 6 | . . . 1 . 1 . 2 . 1 1 Total Hacks 84 | . 15 28 5 8 2 . 13 2 7 4 Successful 36 | . 10 9 2 2 1 . 7 . 3 2 Failed 48 | . 5 19 3 6 1 . 6 2 4 2 Catastrophic 13 | . . 5 . 3 1 . 3 1 . . Database Lockouts . | . . . . . . . . . . . Manual 27 | . 7 8 3 . 2 . 4 . 3 . Terminals 71 | . 15 24 3 8 1 . 11 2 4 3 Fabricators 2 | . . . . . . . . . 2 . Repair Stations 4 | . . 4 . . . . . . . . Recycling Units . | . . . . . . . . . . . Scanalyzers . | . . . . . . . . . . . Garrison Access 7 | . . . 2 . 1 . 2 . 1 1 Terminal Hacks 20 | . 8 5 . 2 . . 4 . . 1 Robot Analysis 3 | . 3 . . . . . . . . . Prototype ID Bank 2 | . 1 . . . . . 1 . . . Open Door 2 | . . . . 1 . . . . . 1 Terminal Index 1 | . 1 . . . . . . . . . Alert Level 4 | . 2 2 . . . . . . . . Unreport Threat 2 | . . 1 . . . . 1 . . . Recall Reinforcements 1 | . . 1 . . . . . . . . Zone Layout 4 | . 1 1 . . . . 2 . . . Garrison Registry 1 | . . . . 1 . . . . . . Fabricator Hacks 2 | . . . . . . . . . 2 . Network Status 1 | . . . . . . . . . 1 . Build 1 | . . . . . . . . . 1 . Repair Station Hacks 4 | . . 4 . . . . . . . . Scan Component 2 | . . 2 . . . . . . . . Repair 2 | . . 2 . . . . . . . . Recycling Unit Hacks . | . . . . . . . . . . . Scanalyzer . | . . . . . . . . . . . Garrison Access Hacks 6 | . . . 1 . 1 . 2 . 1 1 Unlock Access 3 | . . . 1 . 1 . 1 . . . Seal Access 3 | . . . . . . . 1 . 1 1 Unauthorized Hacks 4 | . 2 . 1 . . . 1 . . . Terminals 4 | . 2 . 1 . . . 1 . . . Botnet 4 | . 2 . 1 . . . 1 . . . Fabricators . | . . . . . . . . . . . Repair Stations . | . . . . . . . . . . . Recycling Units . | . . . . . . . . . . . Scanalyzers . | . . . . . . . . . . . Garrison Access . | . . . . . . . . . . . Data Cores Recovered 1 | . 1 . . . . . . . . . Used 1 | . 1 . . . . . . . . . Hacking Detections 30 | . 4 9 2 3 3 . 4 1 3 1 Full Trace Events 9 | . 1 3 . 1 . . 1 . 2 1 Feedback Events 1 | . . . . . . . . . 1 . Corruption 1 | . . . . . . . . . 1 . Feedback Blocked . | . . . . . . . . . . . Robot Schematics Acquired . | . . . . . . . . . . . Robots Built 1 | . . . . . . . . . 1 . Authchips . | . . . . . . . . . . . Time 58 | . . . . . . . . . 58 . Total Robot Build Rating 3 | . . . . . . . . . 3 . Part Schematics Acquired . | . . . . . . . . . . . Parts Built . | . . . . . . . . . . . Authchips . | . . . . . . . . . . . Time . | . . . . . . . . . . . Total Part Build Rating . | . . . . . . . . . . . Parts Repaired 2 | . . 2 . . . . . . . . Time 76 | . . 76 . . . . . . . . Parts Recycled . | . . . . . . . . . . . Recycled Matter . | . . . . . . . . . . . Retrieved Matter . | . . . . . . . . . . . Retrieved Components . | . . . . . . . . . . . Parts Scanalyzed . | . . . . . . . . . . . Part Schematics Acquired . | . . . . . . . . . . . Parts Damaged . | . . . . . . . . . . . Bothacking | -11 -10 -9 -8 -8 -8 -8 -7 -7 -7 -7 ------------ Run | Jun Mat Mat Mat Gar Mat Gar Fac Gar Fac Sto Used RIF Installer 2 | . . . . 1 . . . 1 . . Alert ID Control 1 | . . . . . . . . 1 . . Robots Hacked 15 | . . . . . . . 8 4 3 . Non-combat 4 | . . . . . . . 4 . . . Combat 11 | . . . . . . . 4 4 3 . Robot Hacks Applied 16 | . . . . . . . 8 4 4 . parse_system 1 | . . . . . . . . . 1 . reprogram_traps 1 | . . . . . . . 1 . . . link_complan 1 | . . . . . . . 1 . . . overload_power 2 | . . . . . . . 2 . . . disable_weapons 1 | . . . . . . . . . 1 . formatsys_low 3 | . . . . . . . 3 . . . formatsys_high 7 | . . . . . . . 1 4 2 . Relay Couplers Released 29 | . . . . 12 . 3 . 14 . . Machine Destruction 29 | . . . . 12 . 3 . 14 . . Attached 6 | . . . . . . . 2 2 2 . Fabnet Peak Effective % . | . . . . . . . . . . . Robots Rewired . | . . . . . . . . . . . Allies Hacked . | . . . . . . . . . . . Hacks Repelled . | . . . . . . . . . . . Allies | -11 -10 -9 -8 -8 -8 -8 -7 -7 -7 -7 -------- Run | Jun Mat Mat Mat Gar Mat Gar Fac Gar Fac Sto Total Allies 12 | . . . . 1 . . 4 4 3 . Largest Group 4 | . . . . 1 1 . 3 3 4 1 Highest-Rated Group 99 | . . . . 25 25 . 49 73 99 32 Highest-Rated Ally 32 | . . . . 25 25 . 23 30 32 32 Total Orders 4 | . . . . . . . 2 . 2 . AID 4 | . . . . . . . 2 . 2 . Ally Attacks 62 | . . . . 5 2 . 10 9 34 2 Total Damage 1593 | . . . . 176 44 . 141 164 1003 65 Kills 13 | . . . . 3 . . 1 2 7 . Allies Corrupted . | . . . . . . . . . . . Allies Melted . | . . . . . . . . . . . Intel | -11 -10 -9 -8 -8 -8 -8 -7 -7 -7 -7 ------- Run | Jun Mat Mat Mat Gar Mat Gar Fac Gar Fac Sto Robot Analysis Total 3 | . 3 . . . . . . . . . Derelict Logs Recovered . | . . . . . . . . . . . Drone Launches . | . . . . . . . . . . . Drone Recoveries . | . . . . . . . . . . . Exploration | -11 -10 -9 -8 -8 -8 -8 -7 -7 -7 -7 ------------- Run | Jun Mat Mat Mat Gar Mat Gar Fac Gar Fac Sto Turns Passed 10825 | 53 533 1957 399 789 652 1125 1431 1789 1839 258 Spaces Moved 4424 | 33 319 883 200 422 309 351 554 568 690 95 Core 9 | 6 . . . . . . . 3 . . Treads 2268 | . . 721 200 422 309 228 . 388 . . Legs 1827 | 27 319 162 . . . 123 234 177 690 95 Wheels 320 | . . . . . . . 320 . . . Hover . | . . . . . . . . . . . Flight . | . . . . . . . . . . . Fastest Speed 50 | 50 120 120 145 145 145 152 105 108 120 190 Average Speed 172 | 115 120 151 145 145 153 243 170 204 198 190 Slowest Speed 550 | 190 120 225 145 145 225 470 470 550 262 260 Overloaded Moves . | . . . . . . . . . . . Propulsion Burnouts . | . . . . . . . . . . . Robots Hopped . | . . . . . . . . . . . Cave-ins Triggered . | . . . . . . . . . . . Exploration Rate (%) 34 | 3 46 80 19 56 34 40 15 48 21 22 Regions Visited 10 Branch Regions 1 Pre-discovered Areas . | . . . . . . . . . . . Known Exits Taken 3 | . . . 1 . 1 . 1 . . . Unknown Exits Taken 4 | 1 1 1 . . . . . . 1 . Scrap Searched . | . . . . . . . . . . . Spaces Dug 11 | . . . . . . . 4 7 . . Terrain Destroyed 49 | . . 14 . 12 8 . 8 7 . . Melee 11 | . . . . . . . 4 7 . . Projectile 13 | . . . . 1 8 . 4 . . . AOE 25 | . . 14 . 11 . . . . . . Terrain Rammed . | . . . . . . . . . . . Walls Destroyed . | . . . . . . . . . . . Machines Disabled . | . . . . . . . . . . . Actions | -11 -10 -9 -8 -8 -8 -8 -7 -7 -7 -7 --------- Run | Jun Mat Mat Mat Gar Mat Gar Fac Gar Fac Sto Total 6725 | 44 413 1355 275 543 404 503 885 1124 1037 142 Wait 1297 | 4 35 292 49 55 38 29 185 387 215 8 Move 4417 | 32 318 882 200 421 309 350 554 567 689 95 Hop . | . . . . . . . . . . . Pick Up 115 | . 12 27 4 11 3 7 13 22 14 2 Fast Attach 65 | 6 1 8 . 1 4 7 15 14 5 4 Attach 52 | . 1 3 2 1 1 10 4 16 13 1 Detach 19 | . . 3 . . . 1 2 4 5 4 Swap 88 | 2 5 21 1 5 2 5 16 6 17 8 Drop 112 | . 9 30 3 15 4 4 12 21 10 4 Fire 406 | . 30 84 16 26 39 53 61 16 68 13 Melee 101 | . . . . 8 4 23 19 44 . 3 Ram 2 | . . . . . . . 2 . . . Kick 6 | . 2 3 . . . . . . 1 . Crush 3 | . . 2 . . . . . 1 . . Escape Stasis 37 | . . . . . . 14 . 23 . . Rewire 5 | . . . . . . . 2 3 . . Trap . | . . . . . . . . . . . Miscellaneous . | . . . . . . . . . . . Route ------- -11/Junkyard -10/Materials -9/Materials (discovered 3 exits: *Mat x2 / [*Min]) -8/Materials -8/Garrison (discovered 3 exits: *Mat x3) -8/Materials (discovered 2 exits: *Fac / Gar) -8/Garrison -7/Factory (discovered 2 exits: [*Fac] / Gar) -7/Garrison (discovered 2 exits: *Fac x2) -7/Factory -7/Storage History --------- Turn | Location | Event 33 | -11/Junkyard | Discovered new exit (range 12) 54 | -11/Junkyard | Entered Materials 302 | -10/Materials | Build established: Mutant 549 | -10/Materials | Discovered new exit (range 3) 587 | -10/Materials | Entered another Materials area 587 | -9/Materials | Evolved 2 slots: Propulsion x1, Weapon x1 1663 | -9/Materials | Discovered new exit (range 12) 1790 | -9/Materials | Repaired Adv. Treads 1830 | -9/Materials | Repaired Adv. Treads 1908 | -9/Materials | Build established: Gunner 1980 | -9/Materials | Discovered new exit (range 4) 2375 | -9/Materials | Discovered new exit (range 14) 2544 | -9/Materials | Entered another Materials area 2544 | -8/Materials | Evolved 2 slots: Propulsion x1, Utility x1 2850 | -8/Materials | Build established: Tank 2943 | -8/Materials | Identified exit to Garrison 2943 | -8/Materials | Entered Garrison 3016 | -8/Garrison | Discovered new exit (range 35) 3016 | -8/Garrison | Discovered new exit (range 44) 3016 | -8/Garrison | Discovered new exit (range 57) 3036 | -8/Garrison | Triggered checkpoint 3067 | -8/Garrison | Garrison Relay disabled 3204 | -8/Garrison | Triggered checkpoint 3240 | -8/Garrison | Destroyed 7 combat bots 3300 | -8/Garrison | Installed Relay Interface Framework 3381 | -8/Garrison | Build established: Mutant 3396 | -8/Garrison | Rescued a captive Derelict 3456 | -8/Garrison | Phase Generator disabled 3604 | -8/Garrison | Triggered checkpoint 3685 | -8/Garrison | Build established: Tank 3690 | -8/Garrison | Garrison Relay disabled 3732 | -8/Garrison | Entered Materials 3732 | -8/Materials | Accompanied by 1 ally 3951 | -8/Materials | Garrison activated, responded to threat 4011 | -8/Materials | Discovered new exit (range 13) 4384 | -8/Materials | Identified exit to Garrison 4384 | -8/Materials | Entered Garrison 4406 | -8/Garrison | Triggered checkpoint 4422 | -8/Garrison | Build established: Mutant 4458 | -8/Garrison | Garrison Relay disabled 4628 | -8/Garrison | Triggered checkpoint 4656 | -8/Garrison | Triggered checkpoint 4702 | -8/Garrison | Core integrity fell below 50% 4740 | -8/Garrison | Lost 7 parts (1p3n3w) 5219 | -8/Garrison | Core integrity fell below 20% 5287 | -8/Garrison | Lost 9 parts (2p4n1u2w) 5461 | -8/Garrison | Discovered new exit (range 13) 5509 | -8/Garrison | Entered Factory 5509 | -7/Factory | Evolved 2 slots: Propulsion x1, Utility x1 6104 | -7/Factory | Build established: Bothacker-Mutant 6329 | -7/Factory | Garrison activated, responded to threat 6781 | -7/Factory | Discovered new exit (range 15) 6940 | -7/Factory | Identified exit to Garrison 6940 | -7/Factory | Entered Garrison 6972 | -7/Garrison | Triggered checkpoint 7065 | -7/Garrison | Core integrity fell below 50% 7086 | -7/Garrison | Build established: Mutant 7086 | -7/Garrison | Lost 12 parts (1p6n2u3w) 7356 | -7/Garrison | Garrison Relay disabled 7615 | -7/Garrison | Heavy support dispatched to Factory 7662 | -7/Garrison | Build established: Bothacker-Mutant 7730 | -7/Garrison | Triggered checkpoint 7946 | -7/Garrison | Discovered new exit (range 12) 8014 | -7/Garrison | Garrison Relay disabled 8039 | -7/Garrison | Garrison Relay disabled 8054 | -7/Garrison | Triggered checkpoint 8320 | -7/Garrison | Triggered checkpoint 8374 | -7/Garrison | Triggered checkpoint 8433 | -7/Garrison | Lost 3 parts (1n1u1w) 8488 | -7/Garrison | Discovered new exit (range 10) 8574 | -7/Garrison | Triggered checkpoint 8613 | -7/Garrison | Garrison Relay disabled 8638 | -7/Garrison | Expanded RIF knowledge: Alert ID Control 8729 | -7/Garrison | Entered Factory 8729 | -7/Factory | Accompanied by 3 allies 8909 | -7/Factory | Fabricated M-28 Smith (x1) 9023 | -7/Factory | Build established: Scavenger-Tank 9998 | -7/Factory | Garrison activated, responded to threat 10044 | -7/Factory | Core integrity fell below 20% 10076 | -7/Factory | Lost 4 parts (1p1n1u1w) 10407 | -7/Factory | Lost 5 parts (2n1u2w) 10509 | -7/Factory | Garrison activated, responded to threat 10541 | -7/Factory | Discovered new exit (range 10) 10568 | -7/Factory | Entered Storage 10568 | -7/Storage | Accompanied by 1 ally 10628 | -7/Storage | Garrison activated, responded to threat 10826 | -7/Storage | Destroyed by G-47 Trooper with Particle Gun Last Messages --------------- 10730_ Dropped Particle Gun. 10732_ Dropped Deuterium Engine. 10733_ System corrupted: Energy discharge (-200). 10736_ Acquired 48 matter. 10738_ Detecting nearby Garrison Access. 10741_ R-06 Scavenger collects Aluminum Leg. 10744_ R-06 Scavenger collects Particle Gun. 10758_ System corrupted: Matter fused (-6). 10767_ Connecting with Garrison Access... >>Seal Access door sealed. 10775_ System corrupted: Matter fused (-5). 10787_ W-25 Informer sends out distress signal. 10799_ Storage Shell breached. 10800_ System corrupted: FCS attempts to trigger Hpw. Shotgun. 10800_ System corrupted: Hpw. Shotgun misfires. 10803_ U-05 Engineer builds a Door. 10805_ Extracted 142 matter. 10812_ Acquired Hrd. Light Armor Plating. 10812_ Carbon-fiber Leg destroyed. Map ----- +----------------------------------------------------+ | ?????????????????????????????????????????????????? | | ?????????????????????????????????????????????????? | | ?????????????????????????????????????????????????? | | ?????????????????????????????????????????????????? | | ?????????????????????????????????????????????????? | | ?????????????????????????????????????????????????? | | ?????????????????????????????????????????????????? | | ?????????????????????????????????????????????????? | | ?????????????????????????????????????????????????? | | ?????????????????????????????????????????????????? | | ?????????????????????????????????????????????????? | | ?????????????????????????????????????????????????? | | ?????????????????????????????????????????????????? | | ?????????????????????????????????????????????????? | | ?????????????????????????????????????????????????? | | ?????#######?????????????????????????????????????? | | ?????# #?????????????????????????????????????? | | ?????# " ??????????????????????????????????????? | | ?????# "T ??????????????????????????????????????? | | ?????# ??????????????????????????????????????? | | ?????? ??????????????????????????????????????? | | ??????# #????????###???????????????????????????? | | ####### #???????## ???????????????????????????? | | ? # ##????? ## """"""??????????????????????? | | """ # ## ??? ?# "g|! "????????##????????????? | | !!" # ##+##+#### Y!*@"???? ????????????? | | !]" + + """""" / ????????????? | | ! "= # # #????????????????????? | | |% [ # # #????????????????????? | | """ !# + #????????????????????? | | %%# ##### #### #????????????????????? | | #####+# #####+#############????????????????????? | | ###*[ # ###??????????????????????????? | | +%=*[ # "#??????????????????????????? | | #T# # """ ""#??????????????????????????? | | ### # """ G#??????????????????????????? | | ### + " " """ ""#??????????????????????????? | | """ # "Y" "#??????????????????????????? | | "Y + """ ###??????????????????????????? | | """ # #????????????????????????????? | | ### ###########????????????????????????????? | | ??# ###+#####??????????????????????????????????? | | ??# # ??????????????????????????????????? | | ??# # """"" ??????????????????????????????????? | | ??# # """"" ??????????????????????????????????? | | ??# # """"" #?????????????????????????????????? | | ??# + #?????????????????????????????????? | | ??# # """"" #?????????????????????????????????? | | ??# # """"" #?????????????????????????????????? | | ??# # """"" #?????????????????????????????????? | +----------------------------------------------------+ Best States ------------- Heat Dissipation 75 Energy Generation 19 Energy Capacity 500 Matter Stores 300 Matter Capacity 300 Sight Range 18 Robot Scan Range 14 Terrain Scan Density 10 Base Temperature (-) 100 Armor Coverage 600 Evasion (%) 55 Recoil Reduction 4 Relay Coupler Types 2 Relay Coupler Value 45 Authchip Count 4 Item Schematics ----------------- None Robot Schematics ------------------ None Fabricated ------------ M-28 Smith | x1 | -7/Factory | Preloaded Alien Tech Used ----------------- None Achievements -------------- Infiltrator Challenges ------------ None Game ------ Seed BombardmentTeslaShockpuncher Manual? 0 Play Time 02:04:17 Cumulative 44.2 hours Start 2023.09.11 @ 19:17:14 End 2023.09.12 @ 18:24:18 Sessions 3 Manual Loads 0 Difficulty Rogue Special Mode None Game No. 29 Rogue 29 Adventurer 0 Explorer 0 Win Type - Total 0 Types 0/0/0/0/0/0/0/0/0 Lore% 22 Gallery% 37 Achievement% 33 Wizard Run 0 Options --------- ASCII 0 Keyboard 1 Movement Numpad Keybinds 0 Fullscreen 1 Font 24/Terminus Map View 76x50 Tactical HUD 1 Map Filters NONE Filters NONE Steam 1 RUN: ee9fe818-ff56-41d5-90ad-0d0cf6cb3289